bitfinex-derivatives/quotes_BTCF0:USTF0_20241110
["timestamp","ask_amount","ask_price","bid_price","bid_amount"]
[1731214097282,0.03407822,78065.0,78064.0,0.16651937]
[1731214097480,0.107,78075.0,78064.0,0.16651937]
[1731214097787,0.03410218,78074.0,78064.0,0.16651937]
[1731214098090,0.03410218,78073.0,78064.0,0.16651937]
[1731214098292,0.03410218,78072.0,78064.0,0.16651937]
[1731214098482,0.03410218,78072.0,78057.0,0.00192159]
[1731214098483,0.3608,78069.0,78057.0,0.00192159]
[1731214098687,0.07334569,78068.0,78057.0,0.00192159]
[1731214098997,0.3608,78059.0,78057.0,0.00192159]
[1731214099191,0.03410218,78058.0,78056.0,0.06393]
[1731214099380,0.43340814,78057.0,78038.0,0.16651937]
[1731214099585,0.43340814,78057.0,78032.0,0.06393]
[1731214099586,0.3608,78046.0,78032.0,0.06393]
[1731214099787,0.3608,78046.0,78030.0,0.16651937]
[1731214099788,0.39369297,78046.0,78030.0,0.16651937]
[1731214099981,0.4315284,78046.0,78030.0,0.16651937]
[1731214100392,0.39329751,78046.0,78030.0,0.16651937]
[1731214100589,0.3608,78046.0,78030.0,0.16651937]
[1731214100892,0.3608,78046.0,78023.0,0.16651937]
[1731214100893,0.39324572,78046.0,78023.0,0.16651937]
[1731214101092,0.3608,78033.0,78023.0,0.16651937]
[1731214101288,0.1113,78032.0,78023.0,0.16651937]
[1731214101783,0.1113,78032.0,78017.0,0.01651838]
[1731214101784,0.1113,78032.0,78031.0,0.16651937]
[1731214101988,0.3608,78046.0,78031.0,0.16651937]
[1731214102295,0.3608,78046.0,78045.0,0.16651937]
[1731214102589,0.00192276,78049.0,78045.0,0.16651937]
[1731214102789,0.3608,78062.0,78045.0,0.16651937]
[1731214102982,0.3608,78062.0,78056.0,0.16651937]
[1731214105092,0.3608,78062.0,78048.0,0.16651937]
[1731214106198,0.3608,78055.0,78048.0,0.16651937]
[1731214106699,0.3608,78055.0,78040.0,0.16651937]
[1731214107793,0.3608,78047.0,78040.0,0.16651937]
[1731214108591,0.1123,78061.0,78040.0,0.16651937]
[1731214108592,0.3608,78055.0,78040.0,0.16651937]
[1731214108796,0.1123,78061.0,78051.0,0.16651937]
[1731214108797,0.15168,78060.0,78051.0,0.16651937]
[1731214109000,0.3608,78062.0,78051.0,0.16651937]
[1731214112002,0.3608,78062.0,78043.0,0.16651937]
[1731214112188,0.3608,78054.0,78043.0,0.16651937]
[1731214112392,0.3608,78054.0,78044.0,0.19119527]
[1731214112598,0.3608,78062.0,78043.0,0.16651937]
[1731214112798,0.3608,78052.0,78043.0,0.16651937]
[1731214113391,0.3608,78052.0,78037.0,0.3608]
[1731214114497,0.3608,78052.0,78031.0,0.49778]
[1731214114498,0.3608,78041.0,78031.0,0.49778]
[1731214114801,0.3608,78041.0,78029.0,0.3608]
[1731214114802,0.1092,78040.0,78029.0,0.3608]
[1731214116003,0.03236762,78039.0,78027.0,0.16651937]
[1731214116294,0.15168,78043.0,78036.0,0.16651937]
[1731214116697,0.15168,78043.0,78029.0,0.3608]
[1731214116900,0.15168,78043.0,78022.0,0.36344233]
[1731214116901,0.15168,78043.0,78022.0,0.5292417]
[1731214117094,0.1092,78042.0,78030.0,0.16651937]
[1731214118602,0.1092,78042.0,78030.0,0.14251937]
[1731214118803,0.3608,78035.0,78030.0,0.14251937]
[1731214120100,0.3608,78035.0,78022.0,0.5292417]
[1731214121694,0.3608,78035.0,78031.0,0.16651937]
[1731214121901,0.1092,78042.0,78031.0,0.16651937]
[1731214125995,0.1092,78042.0,78026.0,0.01620078]
[1731214126199,0.1092,78042.0,78029.0,0.16651937]
[1731214126597,0.3608,78044.0,78038.0,0.16651937]
[1731214126799,0.00192259,78051.0,78038.0,0.16651937]
[1731214126998,0.00192259,78051.0,78039.0,0.1136]
[1731214127202,0.00192259,78051.0,78039.0,0.4744]
[1731214127708,0.00192259,78051.0,78046.0,0.16651937]
[1731214132207,0.3608,78047.0,78039.0,0.00068]
[1731214132404,0.00192259,78051.0,78033.0,0.49778]
[1731214132608,0.00192259,78051.0,78040.0,0.16651937]
[1731214133806,0.00192259,78051.0,78050.0,0.16651937]
[1731214134011,0.00192259,78051.0,78038.0,0.4971]
[1731214134210,0.3608,78045.0,78038.0,0.4971]
[1731214135415,0.1182,78044.0,78038.0,0.4971]
[1731214135811,0.1182,78044.0,78040.0,0.16651937]
[1731214142117,0.1182,78044.0,78033.0,0.01649463]
[1731214142321,0.1182,78044.0,78032.0,0.16651937]
[1731214142821,0.1182,78044.0,78032.0,0.15701937]
[1731214143213,0.1182,78044.0,78028.0,0.37798861]
[1731214143413,0.3608,78034.0,78025.0,0.00068]
[1731214143612,0.3608,78026.0,78024.0,0.00192233]
[1731214143917,0.1297,78025.0,78024.0,0.00192233]
[1731214145318,0.1297,78025.0,78023.0,0.11008368]
[1731214145319,0.1297,78025.0,78023.0,0.11008142]
[1731214145917,0.00076,78074.0,78038.0,0.3608]
[1731214146220,0.00076,78074.0,78024.0,1.03434465]
[1731214146221,0.02563827,78114.0,78073.0,0.52719868]
[1731214146422,0.3608,78107.0,78095.0,0.16639868]
[1731214147016,0.3608,78116.0,78095.0,0.16639868]
[1731214147217,0.3608,78116.0,78096.0,0.57499893]
[1731214147430,0.00192155,78117.0,78096.0,0.72639893]
[1731214147722,0.00192155,78117.0,78107.0,0.3608]
[1731214148222,0.3608,78141.0,78116.0,0.3608]
[1731214148419,0.3608,78141.0,78123.0,0.3608]
[1731214149515,0.3608,78133.0,78123.0,0.3608]
[1731214150425,0.3608,78133.0,78108.0,0.51284]
[1731214150426,0.3608,78125.0,78108.0,0.36148]
[1731214150624,0.3608,78125.0,78099.0,0.38642036]
[1731214150625,0.15136,78124.0,78099.0,0.38642036]
[1731214150921,0.15136,78124.0,78104.0,0.16639868]
[1731214151922,0.15136,78124.0,78106.0,0.3608]
[1731214152927,0.3608,78109.0,78099.0,0.36148]
[1731214153230,0.51172,78109.0,78099.0,0.3608]
[1731214153431,0.1337,78108.0,78099.0,0.3608]
[1731214153738,0.00192117,78140.0,78107.0,0.3608]
[1731214154029,0.3608,78177.0,78139.0,0.52719868]
[1731214154226,0.3608,78177.0,78154.0,0.16639868]
[1731214154419,0.15088,78176.0,78154.0,0.16639868]
[1731214154825,0.3608,78177.0,78163.0,0.3608]
[1731214155026,0.3608,78177.0,78153.0,0.3608]
[1731214155228,0.52719868,78187.0,78176.0,0.16639868]
[1731214155229,0.00068,78187.0,78176.0,0.16639868]
[1731214155427,0.3608,78185.0,78173.0,0.3608]
[1731214155623,0.3608,78185.0,78165.0,0.3608]
[1731214155827,0.3608,78178.0,78160.0,0.3608]
[1731214156031,0.15088,78177.0,78160.0,0.3608]
[1731214156433,0.3608,78178.0,78169.0,0.3608]
[1731214157033,0.00191952,78193.0,78169.0,0.6608]
[1731214157240,0.00191952,78193.0,78177.0,0.3608]
[1731214157435,0.3608,78192.0,78177.0,0.3608]
[1731214158129,0.3608,78192.0,78177.0,0.38639806]
[1731214158324,0.3608,78192.0,78185.0,0.3608]
[1731214158533,0.00191952,78193.0,78185.0,0.3608]
[1731214158534,0.00191952,78193.0,78189.0,0.25399058]
[1731214158726,0.00191952,78193.0,78192.0,0.3608]
[1731214159044,0.12,78200.0,78192.0,0.3608]
[1731214159733,0.12,78200.0,78192.0,0.6608]
[1731214160034,0.12,78200.0,78192.0,0.3608]
[1731214160228,0.34979326,78215.0,78199.0,0.61479058]
[1731214160436,0.3608,78242.0,78214.0,0.61479058]
[1731214160627,0.3608,78251.0,78233.0,0.31603437]
[1731214160935,0.3608,78258.0,78239.0,0.25399058]
[1731214161137,0.0162162,78281.0,78234.0,0.57647637]
[1731214161138,0.3608,78269.0,78256.0,0.3608]
[1731214161327,0.3608,78261.0,78243.0,0.3608]
[1731214161638,0.3608,78253.0,78243.0,0.3608]
[1731214161831,0.3608,78253.0,78235.0,0.3608]
[1731214162138,0.3608,78236.0,78230.0,0.3608]
[1731214162436,0.3608,78251.0,78229.0,0.3608]
[1731214162626,0.01665407,78253.0,78233.0,0.25399058]
[1731214162828,0.3608,78260.0,78247.0,0.3608]
[1731214164233,0.15072,78259.0,78247.0,0.3608]
[1731214164431,0.3608,78253.0,78247.0,0.3608]
[1731214164636,0.15072,78259.0,78247.0,0.3608]
[1731214164830,0.3608,78252.0,78223.0,0.3608]
[1731214165035,0.25399058,78241.0,78224.0,0.3608]
[1731214165238,0.3608,78227.0,78204.0,0.00191803]
[1731214165438,0.28572,78226.0,78205.0,0.3608]
[1731214165737,0.25399058,78220.0,78205.0,0.3608]
[1731214166040,0.3608,78217.0,78204.0,0.00191803]
[1731214166549,0.6608,78217.0,78196.0,0.3608]
[1731214166739,0.3608,78216.0,78196.0,0.3608]
[1731214166930,0.3608,78218.0,78206.0,0.3608]
[1731214167131,0.3608,78219.0,78206.0,0.3608]
[1731214167530,0.6608,78219.0,78206.0,0.3608]
[1731214167738,0.3608,78208.0,78196.0,0.3608]
[1731214168129,0.00068,78219.0,78196.0,0.3608]
[1731214168334,0.1341,78225.0,78214.0,0.3608]
[1731214168536,0.1341,78225.0,78203.0,0.3608]
[1731214168537,0.3608,78215.0,78196.0,0.3608]
[1731214169638,0.3608,78197.0,78182.0,0.3608]
[1731214169937,0.3608,78196.0,78184.0,0.3608]
[1731214170338,1.0216,78196.0,78192.0,2e-07]
[1731214170544,0.38368,78195.0,78165.0,0.3608]
[1731214170732,0.3608,78182.0,78165.0,0.3608]
[1731214170939,0.3608,78175.0,78160.0,0.3608]
[1731214171135,0.3608,78168.0,78160.0,0.3608]
[1731214171336,0.25399058,78165.0,78160.0,0.3608]
[1731214171532,0.3608,78161.0,78146.0,0.3608]
[1731214171743,0.3608,78152.0,78146.0,0.3608]
[1731214171941,0.00011297,78151.0,78146.0,0.3608]
[1731214172443,0.3608,78149.0,78131.0,0.36271985]
[1731214172835,0.25399058,78145.0,78131.0,0.36271985]
[1731214173442,0.00011297,78144.0,78131.0,0.3608]
[1731214173642,0.3608,78133.0,78117.0,0.3608]
[1731214173843,0.3608,78119.0,78100.0,0.12651621]
[1731214174056,0.25399058,78125.0,78118.0,0.3608]
[1731214174247,0.3608,78123.0,78100.0,0.1]
[1731214174440,0.3608,78116.0,78100.0,0.1]
[1731214174635,0.3608,78116.0,78115.0,5.33e-05]
[1731214175243,0.15072,78122.0,78115.0,5.33e-05]
[1731214175448,0.00011297,78124.0,78121.0,0.3608]
[1731214176036,0.00011297,78124.0,78121.0,0.3529]
[1731214176439,0.00011297,78124.0,78115.0,5.33e-05]
[1731214178246,0.25399058,78116.0,78115.0,5.33e-05]
[1731214178441,0.00010168,78116.0,78115.0,5.33e-05]
[1731214182753,0.3608,78148.0,78115.0,0.3840933]
[1731214182942,0.02559621,78152.0,78136.0,0.3608]
[1731214183137,0.3608,78144.0,78136.0,0.3608]
[1731214183650,0.02559621,78152.0,78136.0,0.3608]
[1731214183839,7.865e-05,78148.0,78136.0,0.3608]
[1731214184040,7.865e-05,78148.0,78143.0,0.3608]
[1731214184544,7.865e-05,78148.0,78136.0,0.3608]
[1731214186542,7.865e-05,78148.0,78145.0,0.3608]
[1731214190954,7.865e-05,78148.0,78136.0,0.3608]
[1731214192756,0.3608,78137.0,78115.0,5.33e-05]
[1731214193050,0.29004,78136.0,78125.0,0.3608]
[1731214193446,0.29004,78136.0,78115.0,5.33e-05]
[1731214193647,0.29004,78136.0,78123.0,0.3608]
[1731214193951,7.865e-05,78135.0,78123.0,0.3608]
[1731214194142,7.865e-05,78135.0,78115.0,5.33e-05]
[1731214194143,0.3608,78129.0,78115.0,5.33e-05]
[1731214194350,0.3608,78129.0,78117.0,0.3608]
[1731214194351,7.865e-05,78128.0,78117.0,0.3608]
[1731214194552,0.3608,78129.0,78115.0,5.33e-05]
[1731214194750,0.3608,78129.0,78116.0,0.3608]
[1731214194945,7.865e-05,78128.0,78116.0,0.3608]
[1731214195148,7.865e-05,78127.0,78116.0,0.3608]
[1731214195348,0.3608,78129.0,78116.0,0.3608]
[1731214195659,7.865e-05,78126.0,78116.0,0.3608]
[1731214196046,0.3,78126.0,78115.0,5.33e-05]
[1731214196354,0.3608,78122.0,78115.0,5.33e-05]
[1731214196560,0.15071865,78121.0,78115.0,5.33e-05]
[1731214196748,7.865e-05,78120.0,78115.0,5.33e-05]
[1731214196944,0.38411865,78120.0,78115.0,5.33e-05]
[1731214197149,0.38404,78119.0,78115.0,5.33e-05]
[1731214197355,7.865e-05,78120.0,78115.0,5.33e-05]
[1731214199559,0.3608,78116.0,78115.0,5.33e-05]
[1731214199760,4.425e-05,78118.0,78115.0,5.33e-05]
[1731214200761,0.15068,78117.0,78115.0,5.33e-05]
[1731214201147,0.15068,78117.0,78109.0,0.3608]
[1731214202553,7.865e-05,78116.0,78109.0,0.3608]
[1731214204257,0.3608,78115.0,78100.0,0.1]
[1731214204462,7.865e-05,78116.0,78100.0,0.1]
[1731214204663,7.865e-05,78116.0,78111.0,0.3608]
[1731214205163,7.865e-05,78116.0,78104.0,0.3608]
[1731214205360,7.865e-05,78116.0,78111.0,0.3608]
[1731214205862,0.03606892,78115.0,78111.0,0.3608]
[1731214206064,0.03606892,78114.0,78111.0,0.3608]
[1731214206364,0.03606892,78113.0,78111.0,0.3608]
[1731214206563,0.03606892,78112.0,78111.0,0.3608]
[1731214207772,7.865e-05,78116.0,78111.0,0.3608]
[1731214209559,0.03617396,78115.0,78111.0,0.3608]
[1731214209762,7.865e-05,78116.0,78114.0,0.1662789]
[1731214209963,7.865e-05,78116.0,78115.0,0.3608]
[1731214211862,7.865e-05,78116.0,78115.0,0.9111189]
[1731214212558,0.00192069,78155.0,78116.0,0.38404]
[1731214212766,0.0796552,78154.0,78144.0,0.3608]
[1731214213766,0.03685954,78153.0,78144.0,0.3608]
[1731214214065,0.00192069,78155.0,78144.0,0.3608]
[1731214214066,0.03685954,78152.0,78144.0,0.3608]
[1731214214267,0.03685954,78151.0,78144.0,0.3608]
[1731214214464,0.00192069,78155.0,78144.0,0.3608]
[1731214214667,0.03705784,78154.0,78134.0,0.3608]
[1731214214861,0.03705784,78153.0,78134.0,0.3608]
[1731214215064,0.3608,78141.0,78134.0,0.3608]
[1731214215261,0.03705784,78140.0,78134.0,0.3608]
[1731214215467,0.03705784,78139.0,78134.0,0.3608]
[1731214215664,0.1506,78141.0,78134.0,0.3608]
[1731214215873,0.03416205,78140.0,78134.0,0.3608]
[1731214216173,0.1506,78141.0,78134.0,0.3608]
[1731214219575,0.1506,78141.0,78137.0,0.3608]
[1731214219879,0.1506,78151.0,78137.0,0.3608]
[1731214220172,0.1506,78151.0,78146.0,0.3608]
[1731214221772,0.1506,78153.0,78146.0,0.3608]
[1731214222276,0.1506,78154.0,78146.0,0.3608]
[1731214222471,0.1506,78157.0,78153.0,0.3608]
[1731214222669,0.1506,78160.0,78153.0,0.3608]
[1731214224278,0.74464,78154.0,78146.0,0.3608]
[1731214224477,0.4986,78154.0,78146.0,0.3608]
[1731214224781,0.22527848,78153.0,78146.0,0.3608]
[1731214225174,0.03455662,78153.0,78146.0,0.3608]
[1731214225373,0.03455662,78153.0,78147.0,0.3608]
[1731214226067,0.13820413,78169.0,78151.0,0.16614448]
[1731214226273,0.16614448,78196.0,78168.0,0.3608]
[1731214226274,0.0008,78176.0,78168.0,0.3608]
[1731214226470,0.15056,78183.0,78163.0,0.3608]
[1731214226677,0.0019196,78185.0,78163.0,0.3608]
[1731214226871,0.15056,78180.0,78163.0,0.3608]
[1731214227068,0.15056,78180.0,78170.0,0.3608]
[1731214228484,0.1301,78177.0,78170.0,0.3608]
[1731214233182,0.3608,78171.0,78163.0,0.3608]
[1731214233375,0.3608,78171.0,78150.0,0.00191939]
[1731214233581,0.03297048,78170.0,78150.0,0.00191939]
[1731214233882,0.16608014,78166.0,78150.0,0.00191939]
[1731214234094,0.16608014,78166.0,78148.0,0.3608]
[1731214234095,0.03297048,78165.0,78148.0,0.3608]
[1731214234279,0.03297048,78164.0,78148.0,0.3608]
[1731214234479,0.15056,78163.0,78148.0,0.3608]
[1731214235377,0.16608014,78166.0,78148.0,0.3608]
[1731214235378,0.18147507,78162.0,78148.0,0.3608]
[1731214235585,0.40272163,78171.0,78148.0,0.3608]
[1731214235891,0.0019196,78185.0,78170.0,0.52688014]
[1731214236191,0.0019196,78185.0,78178.0,0.3608]
[1731214240082,0.0019196,78185.0,78180.0,0.3608]
[1731214241996,0.02560469,78218.0,78181.0,0.38372]
[1731214242188,0.18441495,78217.0,78204.0,0.3608]
[1731214242396,0.15036,78217.0,78204.0,0.3608]
[1731214242892,0.00076,78237.0,78216.0,0.3608]
[1731214243194,0.0238,78238.0,78230.0,0.3608]
[1731214243689,0.03527211,78237.0,78230.0,0.3608]
[1731214243895,0.03527211,78236.0,78230.0,0.3608]
[1731214244092,0.0238,78238.0,78230.0,0.3608]
[1731214244289,0.03523792,78237.0,78230.0,0.3608]
[1731214244491,0.0238,78238.0,78230.0,0.3608]
[1731214244492,0.03523792,78236.0,78230.0,0.3608]
[1731214244695,0.03523792,78235.0,78230.0,0.3608]
[1731214244997,0.03523792,78234.0,78230.0,0.3608]
[1731214245186,0.0238,78238.0,78230.0,0.3608]
[1731214245788,0.3608,78236.0,78214.0,0.3608]
[1731214245988,0.03504994,78235.0,78214.0,0.3608]
[1731214246194,0.3608,78228.0,78214.0,0.3608]
[1731214246400,0.3608,78220.0,78210.0,0.3608]
[1731214246594,0.03435639,78219.0,78210.0,0.3608]
[1731214246893,0.03419353,78218.0,78210.0,0.3608]
[1731214247198,0.3608,78255.0,78217.0,0.52688014]
[1731214247386,0.3608,78240.0,78228.0,0.3608]
[1731214248597,0.04004107,78239.0,78228.0,0.3608]
[1731214248797,0.3608,78240.0,78228.0,0.3608]
[1731214248990,0.451,78247.0,78228.0,0.3608]
[1731214249198,0.04013144,78246.0,78228.0,0.3608]
[1731214249404,0.04013144,78245.0,78228.0,0.3608]
[1731214249705,0.04013144,78244.0,78228.0,0.3608]
[1731214249893,0.04013144,78243.0,78228.0,0.3608]
[1731214250096,0.3608,78242.0,78228.0,0.3608]
[1731214250804,0.3608,78242.0,78207.0,0.01669133]
[1731214250805,0.52688014,78235.0,78201.0,0.3608]
[1731214251099,0.28452,78234.0,78208.0,0.3608]
[1731214251504,0.58452,78234.0,78208.0,0.3608]
[1731214251906,0.28452,78234.0,78215.0,0.3608]
[1731214252096,0.58452,78234.0,78215.0,0.3608]
[1731214252302,0.58452,78234.0,78215.0,0.33521]
[1731214253194,0.3608,78228.0,78215.0,0.33521]
[1731214255502,0.15028,78227.0,78215.0,0.33521]
[1731214256705,0.3608,78228.0,78215.0,0.33521]
[1731214256905,0.15028,78227.0,78215.0,0.33521]
[1731214257602,0.15028,78227.0,78226.0,0.3608]
[1731214257802,0.15028,78227.0,78215.0,0.33521]
[1731214258003,0.02558732,78233.0,78215.0,0.33521]
[1731214258302,0.15028,78232.0,78226.0,0.16608014]
[1731214258504,0.15028,78232.0,78222.0,0.3608]
[1731214258708,0.03470473,78231.0,78222.0,0.3608]
[1731214258906,0.03470473,78230.0,78222.0,0.3608]
[1731214259109,0.03470473,78229.0,78222.0,0.3608]
[1731214259302,0.03470473,78228.0,78222.0,0.3608]
[1731214259610,0.03470473,78227.0,78226.0,0.16608014]
[1731214259809,0.15028,78244.0,78226.0,0.07739136]
[1731214260010,0.15028,78244.0,78243.0,0.28409]
[1731214260212,0.07659884,78244.0,78243.0,0.28409]
[1731214260414,0.07659884,78244.0,78243.0,0.25852]
[1731214260712,0.07659884,78244.0,78242.0,0.3608]
[1731214260713,0.03544525,78244.0,78242.0,0.3608]
[1731214260914,0.03544525,78243.0,78241.0,0.3608]
[1731214261106,0.03544525,78242.0,78241.0,0.3608]
[1731214261809,0.1421,78254.0,78241.0,0.3608]
[1731214262109,0.07525007,78253.0,78241.0,0.3608]
[1731214262409,0.07525007,78252.0,78241.0,0.3608]
[1731214262606,0.3608,78245.0,78234.0,0.3608]
[1731214262812,0.22543836,78244.0,78234.0,0.3608]
[1731214263109,0.07515836,78243.0,78230.0,0.3608]
[1731214263308,0.3608,78238.0,78222.0,0.3608]
[1731214263612,0.18510112,78237.0,78222.0,0.3608]
[1731214263915,0.07407829,78236.0,78222.0,0.3608]
[1731214264115,0.03482112,78235.0,78222.0,0.3608]
[1731214264413,0.18510112,78234.0,78222.0,0.3608]
[1731214264711,0.03482112,78233.0,78225.0,0.16608014]
[1731214264919,0.03482112,78232.0,78222.0,0.3608]
[1731214265116,0.17052112,78231.0,78222.0,0.3608]
[1731214265417,0.03482112,78230.0,78222.0,0.3608]
[1731214265717,0.1357,78231.0,78222.0,0.3608]
[1731214265918,0.03391418,78230.0,78222.0,0.3608]
[1731214266113,0.1357,78231.0,78222.0,0.3608]
[1731214266514,0.03379403,78230.0,78217.0,0.00191775]
[1731214266714,0.1357,78231.0,78217.0,0.00191775]
[1731214266715,0.03379403,78229.0,78219.0,0.16608014]
[1731214266919,0.1357,78231.0,78221.0,0.3608]
[1731214267109,0.03400562,78230.0,78221.0,0.3608]
[1731214267311,0.1357,78231.0,78222.0,0.06394]
[1731214267519,0.03404956,78230.0,78222.0,0.06394]
[1731214267822,0.1357,78231.0,78229.0,0.06394]
[1731214268016,0.3608,78245.0,78229.0,0.06394]
[1731214268321,0.16575103,78318.0,78229.0,0.06394]
[1731214268322,0.26983753,78244.0,78229.0,0.06394]
[1731214268517,0.07392646,78243.0,78229.0,0.06394]
[1731214268721,0.07392646,78242.0,78229.0,0.06394]
[1731214268918,0.07392646,78241.0,78229.0,0.06394]
[1731214269119,0.15028,78245.0,78229.0,0.06394]
[1731214269120,0.07459857,78240.0,78229.0,0.06394]
[1731214269424,0.03420342,78239.0,78229.0,0.06394]
[1731214269612,0.03420342,78238.0,78236.0,0.06394]
[1731214269817,0.03420342,78237.0,78236.0,0.06394]
[1731214270017,0.03420342,78244.0,78236.0,0.06394]
[1731214270318,0.07461788,78243.0,78236.0,0.06394]
[1731214270618,0.3608,78254.0,78242.0,0.3608]
[1731214270819,0.3608,78254.0,78253.0,0.16608014]
[1731214271219,0.3608,78283.0,78253.0,0.54944014]
[1731214271520,0.3608,78294.0,78266.0,0.88768014]
[1731214271823,0.3608,78306.0,78275.0,0.3608]
[1731214271824,0.14013346,78281.0,78275.0,0.3608]
[1731214272020,0.3608,78279.0,78266.0,0.0008]
[1731214272324,0.14013383,78275.0,78265.0,0.14051014]
[1731214272515,0.08958746,78274.0,78273.0,0.16608014]
[1731214272717,0.0007,78284.0,78273.0,0.16608014]
[1731214273020,0.01462218,78274.0,78273.0,0.16608014]
[1731214273207,0.04229063,78274.0,78273.0,0.16608014]
[1731214273407,0.0007,78284.0,78273.0,0.16608014]
[1731214273621,0.14013383,78298.0,78281.0,0.38324]
[1731214273810,0.3846,78310.0,78280.0,0.59483373]
[1731214273811,0.0238,78310.0,78294.0,0.3608]
[1731214274209,0.3846,78310.0,78294.0,0.3608]
[1731214274413,0.3846,78310.0,78301.0,0.3608]
[1731214274612,0.0238,78310.0,78302.0,0.15004]
[1731214274822,0.3846,78325.0,78308.0,0.3608]
[1731214275121,0.3846,78325.0,78324.0,0.16608014]
[1731214275417,0.3608,78325.0,78324.0,0.16533126]
[1731214275621,0.3608,78325.0,78315.0,0.16533126]
[1731214275919,0.6908,78325.0,78311.0,0.15004]
[1731214276220,0.33,78312.0,78311.0,0.15004]
[1731214276421,0.33,78312.0,78311.0,0.45004]
[1731214276613,0.33,78312.0,78311.0,0.83312]
[1731214277014,0.33,78312.0,78311.0,0.38308]
[1731214277325,0.33,78312.0,78299.0,0.25679338]
[1731214277326,0.75446,78312.0,78299.0,0.25679338]
[1731214277522,0.39366,78312.0,78299.0,0.25679338]
[1731214277720,0.66,78300.0,78299.0,0.25679338]
[1731214277916,0.66,78300.0,78292.0,0.3608]
[1731214277917,0.66718,78300.0,78292.0,0.3608]
[1731214278122,0.66718,78300.0,78292.0,0.6608]
[1731214278322,0.66,78293.0,78292.0,0.3608]
[1731214278628,1.0208,78293.0,78289.0,0.02554984]
[1731214278815,0.66,78290.0,78289.0,0.02554984]
[1731214279021,0.66,78290.0,78281.0,0.01688164]
[1731214279022,1.0208,78290.0,78267.0,0.25679338]
[1731214279215,0.3608,78283.0,78267.0,0.25679338]
[1731214279420,0.66,78272.0,78267.0,0.25679338]
[1731214279822,0.3608,78283.0,78267.0,0.25679338]
[1731214280030,0.88681824,78272.0,78267.0,0.25679338]
[1731214280219,0.21109632,78272.0,78267.0,0.25679338]
[1731214280529,0.21109632,78272.0,78257.0,0.25679338]
[1731214280919,0.21109632,78272.0,78256.0,0.3608]
[1731214281833,0.21109632,78272.0,78257.0,0.25679338]
[1731214282034,0.21109632,78272.0,78263.0,0.3608]
[1731214282322,0.32239,78276.0,78264.0,0.06394]
[1731214282725,0.3608,78268.0,78264.0,0.06394]
[1731214283530,0.3608,78268.0,78252.0,9.191e-05]
[1731214283729,0.3608,78257.0,78252.0,9.191e-05]
[1731214284225,0.3608,78257.0,78212.0,0.25679338]
[1731214284226,0.38336,78256.0,78212.0,0.25679338]
[1731214284532,0.3608,78230.0,78218.0,0.3608]
[1731214284822,0.3608,78230.0,78207.0,0.15]
[1731214285024,0.3608,78230.0,78206.0,0.37736168]
[1731214285025,0.3608,78222.0,78206.0,0.3608]
[1731214285213,9.191e-05,78221.0,78202.0,0.00191799]
[1731214285419,0.3608,78215.0,78202.0,0.00191799]
[1731214285618,0.3608,78207.0,78202.0,0.00191799]
[1731214286831,9.191e-05,78206.0,78202.0,0.00191799]
[1731214287825,9.191e-05,78206.0,78203.0,0.3836]
[1731214288031,9.191e-05,78206.0,78203.0,0.93494029]
[1731214288221,9.191e-05,78206.0,78204.0,0.3836]
[1731214288423,9.191e-05,78206.0,78204.0,0.53364]
[1731214288622,9.191e-05,78206.0,78205.0,0.3836]
[1731214289018,9.191e-05,78206.0,78205.0,0.6836]
[1731214289221,9.191e-05,78206.0,78205.0,0.3836]
[1731214289426,9.191e-05,78206.0,78205.0,0.6836]
[1731214289828,0.1424,78236.0,78205.0,0.83364]
[1731214290033,0.1424,78236.0,78223.0,0.25679338]
[1731214290638,0.00191869,78238.0,78223.0,0.25679338]
[1731214291132,0.3608,78266.0,78233.0,0.25679338]
[1731214291335,0.3608,78266.0,78244.0,0.25679338]
[1731214292935,0.3608,78266.0,78209.0,0.1416]
[1731214292936,0.61759338,78245.0,78200.0,0.1]
[1731214293127,0.61759338,78245.0,78177.0,0.04917357]
[1731214293128,0.3608,78186.0,78177.0,0.04917357]
[1731214293428,1.06046,78244.0,78177.0,0.04917357]
[1731214293429,0.3608,78187.0,78177.0,0.04917357]
[1731214293733,0.3608,78187.0,78177.0,0.34917357]
[1731214293934,0.3608,78187.0,78184.0,0.25679338]
[1731214294230,9.496e-05,78186.0,78184.0,0.55679338]
[1731214294435,0.01032496,78186.0,78185.0,0.38368]
[1731214294730,0.37112496,78186.0,78185.0,0.54096]
[1731214295043,0.3608,78213.0,78185.0,1.51788807]
[1731214295226,0.3608,78213.0,78211.0,0.25680862]
[1731214295532,0.1384,78234.0,78211.0,0.25680862]
[1731214295533,0.3608,78225.0,78212.0,0.15732]
[1731214295736,0.1384,78234.0,78213.0,0.15732]
[1731214295737,0.3608,78223.0,78213.0,0.15732]
[1731214295935,0.3608,78223.0,78211.0,0.91760862]
[1731214295936,0.3608,78223.0,78211.0,0.91840862]
[1731214296229,0.3608,78223.0,78214.0,0.15732]
[1731214296531,0.3608,78224.0,78214.0,0.45732]
[1731214296733,0.01022,78223.0,78214.0,0.45732]
[1731214297032,0.01022,78223.0,78222.0,0.25680862]
[1731214297233,0.01022,78223.0,78222.0,0.55680862]
[1731214297429,0.01022,78223.0,78222.0,1.29017194]
[1731214298028,0.01022,78223.0,78222.0,0.57604332]
[1731214298232,0.01022,78223.0,78222.0,0.38352]
[1731214299331,0.01022,78223.0,78217.0,0.15732]
[1731214299532,0.01022,78223.0,78217.0,0.45732]
[1731214299735,0.3608,78228.0,78221.0,0.25680862]
[1731214300035,0.3608,78245.0,78225.0,0.3608]
[1731214300530,0.143,78259.0,78222.0,0.15732]
[1731214300531,0.3608,78226.0,78222.0,0.15732]
[1731214301134,0.3608,78226.0,78221.0,0.25680862]
[1731214301336,0.3608,78226.0,78211.0,0.25680862]
[1731214301337,0.7216,78226.0,78211.0,0.25680862]
[1731214301533,0.3608,78216.0,78212.0,0.15732]
[1731214301838,0.01022,78225.0,78215.0,0.02558238]
[1731214302037,0.01022,78225.0,78221.0,0.25680862]
[1731214302534,0.01022,78225.0,78222.0,0.38352]
[1731214302928,0.01022,78225.0,78223.0,0.38352]
[1731214303129,0.01022,78225.0,78223.0,0.3]